Cogmind - Beta 13 X1 @@@ ROGUE MODE // 2023.12.01 @ 19:40:31 Player: leiavoia Result: Destroyed by Y-54 Guardian with Flak Gun Performance ------------- Evolutions (4) 2000 Regions Visited (16) 3200 Robots Destroyed (184) 920 Value Destroyed (5593) 5593 Prototype IDs (23) 460 Alien Tech Used (0) 0 Bonus (1902) 1902 TOTAL SCORE: 14075 Bonus ------- High Alert Combat Kills 1001 Follower Combat Kills 417 Entered Garrisons 200 Met Imprinter 300 Friendly Fire -16 Cogmind --------- Core Integrity 0/850 Matter 300/300 Energy 124/125 System Corruption 2% Temperature Cool (14) Movement Hovering (61) Location -6/Extension Parts ------- > --- POWER (1) -------- Light Ion Engine > --- PROPULSION (6) --- Cooled Airjet Combat Gravmag System Improved Flight Unit Improved Flight Unit > --- UTILITY (6) ------ Structural Scanner Improved Light Armor Plating Makeshift Hacking Suite Improved Hacking Suite Authchip [Propulsion] > --- WEAPON (2) ------- CR-A16's Behemoth Slayer > --- INVENTORY (5) ---- Improved Deuterium Engine Fission Core Phasing AFG Heavy Beamcaster Bore Cannon Peak State ------------ > --- POWER ------------ Angular Momentum Engine > --- PROPULSION ------- Cooled Aerolev Unit Improved Flight Unit Improved Flight Unit Improved Flight Unit Nuclear Pulse Thruster Field Propulsion Drive > --- UTILITY ---------- Advanced Weight Redist. System Experimental Sensor Array Makeshift Hacking Suite Makeshift Hacking Suite Improved Hacking Suite System Shield > --- WEAPON ----------- Heavy Plasma Cannon CR-A16's Behemoth Slayer > --- INVENTORY -------- Micro Nuclear Core Cooled Cesium-ion Thruster Phasing AFG Heavy Flak Cannon Precision Grenade Launcher [Rating: 76] Favorites ----------- Power Ion Engine Engine Ion Engine Power Core Micro Nuclear Core Propulsion Light Treads Treads Light Treads Leg Aluminum Leg Wheel Armored Wheel Hover Unit Combat Gravmag System Flight Unit Improved Flight Unit Utility Huge Storage Unit Device Seismic Detector Storage Huge Storage Unit Processor Advanced Visual Processing Unit Hackware Makeshift Hacking Suite Protection Hardened Light Armor Plating Weapon Shotgun Energy Gun Gatling Laser Energy Cannon Heavy Plasma Cannon Ballistic Gun Shotgun Ballistic Cannon Flak Cannon Launcher Mini Grenade Launcher Impact Weapon Impact Mace Piercing Weapon CR-A16's Behemoth Slayer Special Melee Weapon Improved Datajack Build | -11 -10 -10 -10 -9 -8 -8 -8 -7 -7 -7 -7 -7 -7 -6 -6 -6 ------- Run | Jun Mat Min Exi Min Mat Gar Mat Fac Was Fac Low Low Zio Pro Fac Ext Slots Evolved 8 | . . . . . 4 . . 2 . . . . . . 2 . Power . | . . . . . . . . . . . . . . . . . Propulsion 4 | . . . . . 2 . . 1 . . . . . . 1 . Utility 4 | . . . . . 2 . . 1 . . . . . . 1 . Weapon . | . . . . . . . . . . . . . . . . . Parts Attached 196 | 1 18 5 . 4 28 20 27 11 . 20 1 . 9 4 25 23 Power 13 | . 1 1 . . 2 2 1 . . 2 . . . 1 1 2 Engine 10 | . 1 1 . . 2 2 1 . . . . . . . 1 2 Core 3 | . . . . . . . . . . 2 . . . 1 . . Reactor . | . . . . . . . . . . . . . . . . . Propulsion 58 | . 9 3 . . 10 . 7 5 . . . . 1 . 11 12 Treads 23 | . 2 2 . . 10 . 4 . . . . . . . . 5 Leg 4 | . 4 . . . . . . . . . . . . . . . Wheel 6 | . 3 1 . . . . 2 . . . . . . . . . Hover 8 | . . . . . . . . . . . . . . . 3 5 Flight 17 | . . . . . . . 1 5 . . . . 1 . 8 2 Utility 52 | 1 2 . . 3 4 5 10 4 . 6 1 . 7 2 4 3 Device 26 | 1 . . . 1 1 3 6 2 . 4 1 . 3 1 1 2 Storage 3 | . 2 . . . . . . . . . . . . . 1 . Processor 1 | . . . . . . . . . . . . . 1 . . . Hackware 7 | . . . . . . . . 2 . . . . 3 1 1 . Protection 15 | . . . . 2 3 2 4 . . 2 . . . . 1 1 Artifact . | . . . . . . . . . . . . . . . . . Weapon 73 | . 6 1 . 1 12 13 9 2 . 12 . . 1 1 9 6 Energy Gun 4 | . . . . . 2 2 . . . . . . . . . . Energy Cannon 10 | . . . . . 1 2 . . . 2 . . . 1 4 . Ballistic Gun 15 | . 5 . . 1 5 . 3 . . . . . . . . 1 Ballistic Cannon 6 | . . . . . 1 1 3 . . 1 . . . . . . Launcher 20 | . 1 1 . . 2 6 2 . . . . . . . 4 4 Special Weapon . | . . . . . . . . . . . . . . . . . Impact Weapon 10 | . . . . . 1 2 1 2 . 4 . . . . . . Slashing Weapon . | . . . . . . . . . . . . . . . . . Piercing Weapon 3 | . . . . . . . . . . . . . 1 . 1 1 Special Melee Weapon 5 | . . . . . . . . . . 5 . . . . . . Unidentified Prototypes 14 | . . . . 1 3 . 1 . . 3 . . 1 . 4 1 Parts Lost 32 | . . 1 . . 1 2 5 . . . . . . 3 6 14 Power 3 | . . . . . . . . . . . . . . 1 1 1 Propulsion 16 | . . 1 . . . . 3 . . . . . . . 3 9 Utility 10 | . . . . . 1 2 2 . . . . . . 2 1 2 Weapon 3 | . . . . . . . . . . . . . . . 1 2 Highest Loss Streak 7 | . . 1 . . 1 1 3 . . . . . . 3 3 7 To Critical Strikes . | . . . . . . . . . . . . . . . . . Average Slot Usage (%) 96 | . 100 100 100 99 97 94 92 98 100 99 100 100 100 97 97 82 Engine 9 | . 14 14 14 14 9 8 9 7 7 1 . . . . 3 2 Treads 20 | . 3 12 28 28 36 36 27 2 . . . . . . . 7 Leg 1 | . 20 . . . . . . . . . . . . . . . Wheel 2 | . 3 15 . . . . 7 2 . . . . . . . . Hover 1 | . . . . . . . . . . . . . . . 1 17 Flight 7 | . . . . . . . . 31 38 38 38 38 38 38 38 6 Device 10 | . 14 14 14 . 8 12 9 19 23 22 29 30 15 6 9 5 Storage 8 | . 14 14 14 14 9 9 9 1 . . . . . . . . Hackware 5 | . . . . . . . . 12 15 11 7 7 18 28 27 28 Protection 7 | . . . . 13 16 8 11 3 . 3 . . . . . . Energy Gun 1 | . . . . . 4 2 4 . . . . . . . . . Ballistic Gun 10 | . 28 24 14 28 11 . 4 8 7 . . . . . . . Ballistic Cannon 1 | . . . . . . 5 7 . . . . . . . . . Launcher 2 | . . 3 14 . 1 6 . . . . . . . . . 4 Impact Weapon 1 | . . . . . . 1 . 5 7 7 7 7 7 6 . . Naked Turns . | . . . . . . . . . . . . . . . . . Heaviest Build 116 | 13 92 92 90 96 108 116 116 107 19 23 22 14 14 18 38 20 Greatest Support 92 | 20 40 40 40 40 82 82 82 25 25 25 25 25 25 34 39 92 Greatest Overweight (x) 4 | . 2 3 2 2 1 1 4 4 . . . . . . 2 3 Average Overweight (x) . | . . 2 2 2 1 1 2 . . . . . . . . . Largest Inventory Capacity 25 | 8 25 25 25 25 25 25 25 25 5 5 5 5 5 5 15 5 Average Capacity 19 | 8 15 25 25 25 25 25 25 8 5 5 5 5 5 5 5 5 Most Carried 25 | 7 25 25 25 25 25 25 25 25 5 5 5 5 5 5 5 5 Average Carried 18 | 6 12 24 25 24 24 24 24 8 5 4 5 5 4 4 4 4 Final Capacity 25 | 8 25 25 25 25 25 25 25 5 5 5 5 5 5 5 5 5 Final Carried 25 | 7 25 25 25 25 25 25 25 5 5 5 5 5 5 5 5 5 Class Distribution -------------------- 67% | Mutant 11% | Hacker-Sprinter 8% | Scavenger-Mutant 6% | Hacker-Mutant 5% | Sprinter Dominant Class ---------------- Mutant | -10/Materials Mutant | -10/Mines Mutant | -10/Exiles Mutant | -9/Mines Mutant | -8/Materials Mutant | -8/Garrison Mutant | -8/Materials Hacker-Sprinter | -7/Factory Hacker-Sprinter | -7/Waste Hacker-Sprinter | -7/Factory Sprinter | -7/Lower Caves Sprinter | -7/Lower Caves Hacker-Sprinter | -7/Zion Hacker-Sprinter | -6/Proximity Caves Hacker-Sprinter | -6/Factory Hacker-Mutant | -6/Extension Resources | -11 -10 -10 -10 -9 -8 -8 -8 -7 -7 -7 -7 -7 -7 -6 -6 -6 ----------- Run | Jun Mat Min Exi Min Mat Gar Mat Fac Was Fac Low Low Zio Pro Fac Ext Matter Collected 5589 | 254 726 303 . 106 715 860 968 118 20 217 55 . 50 90 267 840 Remotely 165 | . . . . . . . 165 . . . . . . . . . Salvage Created 5931 | 166 691 403 . 50 979 822 1187 36 . 187 125 . . 416 172 697 Parts 310 | 8 54 24 . 11 57 42 64 3 . 5 . . . 4 14 24 Haulers Intercepted 8 | . 1 . . . 2 . 2 1 . 1 . . . . 1 . Recyclers Shooed 7 | . 1 . . . 1 . 3 . . . . . . . . 2 Parts Field Recycled . | . . . . . . . . . . . . . . . . . Retrieved Matter . | . . . . . . . . . . . . . . . . . Parts Self-Destructed 3 | . . . . . . . . . . . . . . 3 . . Prevented . | . . . . . . . . . . . . . . . . . Kills | -11 -10 -10 -10 -9 -8 -8 -8 -7 -7 -7 -7 -7 -7 -6 -6 -6 ------- Run | Jun Mat Min Exi Min Mat Gar Mat Fac Was Fac Low Low Zio Pro Fac Ext Combat Hostiles Destroyed 133 | . 14 12 . 3 17 31 29 . . 3 . . . 1 3 20 Melee 4 | . . . . . . . . . . 2 . . . . . 2 Guns 53 | . 14 9 . 3 9 1 17 . . . . . . . . . Cannons 12 | . . . . . 1 3 8 . . . . . . . . . AOE 61 | . . 3 . . 6 27 4 . . . . . . . 3 18 Classes Destroyed 20 | 2 7 2 . . 3 2 2 . . . . . . 1 1 . Worker 14 | . 1 3 . . 5 . 2 . . . . . . . 2 1 Builder 6 | . 1 . . 1 1 . . . . . . . . . . 3 Tunneler 5 | 3 1 1 . . . . . . . . . . . . . . Hauler 8 | . 1 . . . 2 . 2 1 . 1 . . . . 1 . Recycler 7 | 1 . 2 . . 1 . 2 . . . . . . . . 1 Mechanic 1 | . . . . . . . 1 . . . . . . . . . Operator 3 | . 1 . . . 1 . . . . 1 . . . . . . Watcher 8 | . 3 . . . 2 . 2 . . . . . . . 1 . Swarmer 30 | . 2 6 . 3 1 10 7 . . . . . . . . 1 Cutter 3 | . . . . . . . . . . . . . . . 3 . Grunt 58 | . 12 4 . . 8 8 12 . . . . . . . . 14 Brawler 2 | . . . . . . 1 1 . . . . . . . . . Duelist 6 | . . . . . 1 4 1 . . . . . . . . . Protector 1 | . . . . . . . 1 . . . . . . . . . Sentry 21 | . . . . . 6 5 7 . . . . . . . . 3 Demolisher 1 | . . 1 . . . . . . . . . . . . . . Hunter 3 | . . . . . 1 2 . . . . . . . . . . Programmer 4 | . . . . . . 1 . . . 3 . . . . . . Behemoth 1 | . . . . . . . . . . . . . . 1 . . Packrat 2 | . . . . . . . . . . . 2 . . . . . Assembled 1 | . . 1 . . . . . . . . . . . . . . Thug 1 | . . . . . . . . . . . . . . . . 1 Guerrilla 1 | . . . . . . . . . . . . . . . . 1 Best Kill Streak 10 | 2 4 7 . 2 9 6 7 1 . 2 . . . 1 3 10 Combat Bots Only 10 | . 2 3 . 2 6 6 5 . . 1 . . . 1 3 10 Max Kills in Single Turn 6 | 1 2 2 . 1 2 6 3 1 . 1 1 . . 1 2 3 Gunslinging 1 | . . . . . . . 1 . . . . . . . . . Exploded 6 | . . 1 . . 1 6 2 . . . . . . . 2 3 Melee 1 | . . . . . . . . . . 1 . . . . . 1 Uniques/NPCs Destroyed . | . . . . . . . . . . . . . . . . . Combat | -11 -10 -10 -10 -9 -8 -8 -8 -7 -7 -7 -7 -7 -7 -6 -6 -6 -------- Run | Jun Mat Min Exi Min Mat Gar Mat Fac Was Fac Low Low Zio Pro Fac Ext Damage Taken 8770 | . 418 368 . 67 949 1197 1819 . 24 396 89 47 . 572 1000 1824 Core 1840 | . 109 85 . 9 126 74 128 . 9 121 27 . . 301 281 570 Absorbed by Shields 216 | . . . . . . 216 . . . . . . . . . . Ignored by Resistances 70 | . . . . . 64 6 . . . . . . . . . . Regen/Repaired (Parts) 36 | . . . . . . . . . . . . . 19 . 17 . Core Remaining (%) 48 | 100 . . . 18 . . 40 . . . . . . 34 . . Volleys Fired 404 | 22 57 24 . 10 81 71 89 . . 3 . . . . 35 12 Largest 2 | 2 2 2 . 2 2 2 2 . . 1 . . . . 1 2 Hottest 128 | 40 53 53 . 46 78 124 128 . . 48 . . . . 90 100 Shots Fired 677 | 44 114 42 . 20 131 102 173 . . 3 . . . . 35 13 Gun 432 | 44 113 37 . 20 111 5 101 . . 1 . . . . . . Cannon 168 | . . . . . 10 58 66 . . 2 . . . . 32 . Launcher 77 | . 1 5 . . 10 39 6 . . . . . . . 3 13 Special . | . . . . . . . . . . . . . . . . . Kinetic 451 | 44 113 37 . 20 89 21 124 . . 3 . . . . . . Thermal 143 | . . . . . 26 42 43 . . . . . . . 32 . Explosive 77 | . 1 5 . . 10 39 6 . . . . . . . 3 13 Electromagnetic 6 | . . . . . 6 . . . . . . . . . . . Robot Hit Streak 29 | 8 8 7 . 4 18 29 23 . . . . . . . . 4 Robot Miss Streak 10 | 3 6 8 . 6 5 8 6 . . 1 . . . . 2 10 Penetration Max . | . . . . . . . . . . . . . . . . . Secondary Targets 4 | . . 1 . . 1 . 2 . . . . . . . . . Max Gunslinging Chain 1 | . . 1 . . 1 . 1 . . . . . . . . . Shots Hit Robots 509 | 26 62 29 . 10 99 81 128 2 . 14 2 . 10 16 4 26 Core Hits 413 | 8 32 27 . 5 51 82 79 1 . 2 2 . . 4 11 109 Critical Kills 3 | . 1 . . . . . . . . 1 1 . . . . . Critical Parts Destroyed 3 | . . . . . . . . . . 2 . . . 1 . . Critical Strikes 19 | . 1 . . . . . 5 . . 3 1 . . 2 3 4 Destroy 1 | . 1 . . . . . . . . . . . . . . . Blast 5 | . . . . . . . 5 . . . . . . . . . Smash 5 | . . . . . . . . . . 3 1 . . 1 . . Impale 8 | . . . . . . . . . . . . . . 1 3 4 Melee Attacks 148 | . . . . . 2 4 1 17 2 32 6 . 12 20 33 19 Impact 74 | . . . . . 2 4 1 17 2 32 6 . 1 9 . . Slashing . | . . . . . . . . . . . . . . . . . Piercing 63 | . . . . . . . . . . . . . . 11 33 19 Sneak Attacks 21 | . . . . . . . . 1 . 1 2 . 10 . 2 5 Combat Hostiles . | . . . . . . . . . . . . . . . . . Follow-up Attacks 3 | . . . . . . . . . . . . . . 3 . . Damage Inflicted 18429 | 213 974 826 . 142 2508 3622 3357 180 . 757 247 . . 895 654 4054 Guns 4834 | 213 967 392 . 133 1483 54 1592 . . . . . . . . . Cannons 2544 | . . . . . 204 1142 1198 . . . . . . . . . Explosions 7940 | . . 434 . . 810 2426 534 . . . . . . . 405 3331 Melee 3031 | . . . . . . . . 180 . 757 247 . . 895 242 710 Ramming 80 | . 7 . . 9 11 . 33 . . . . . . . 7 13 Kinetic 5172 | 213 967 392 . 133 1158 342 1967 . . . . . . . . . Thermal 2049 | . . . . . 372 854 823 . . . . . . . . . Explosive 7940 | . . 434 . . 810 2426 534 . . . . . . . 405 3331 Electromagnetic 157 | . . . . . 157 . . . . . . . . . . . Impact 1815 | . . . . . . . . 180 . 757 247 . . 631 . . Slashing . | . . . . . . . . . . . . . . . . . Piercing 1216 | . . . . . . . . . . . . . . 264 242 710 Highest Corruption 11 | . . . . . . 1 1 . 9 11 11 11 11 . 2 2 Average Corruption 3 | . . . . . . 1 1 . 9 10 11 11 11 . 1 2 Corruption Purged . | . . . . . . . . . . . . . . . . . Corruption Blocked . | . . . . . . . . . . . . . . . . . Effects 60 | . . . . . . 4 13 . 3 17 5 5 . . 1 12 Message Errors 14 | . . . . . . 1 3 . 1 4 . 1 . . . 4 Matter Fused 18 | . . . . . . 3 3 . 1 4 2 1 . . . 4 Heat Flow Errors 9 | . . . . . . . 4 . 1 1 . 1 . . . 2 Energy Discharges 2 | . . . . . . . . . . 1 1 . . . . . Parts Rejected 1 | . . . . . . . . . . . . . . . . 1 Parts Fused 1 | . . . . . . . . . . 1 . . . . . . Data Loss (minor) 6 | . . . . . . . 2 . . 1 1 . . . 1 1 Data Loss (major) 5 | . . . . . . . 1 . . 3 . 1 . . . . Alerts 1 | . . . . . . . . . . . . 1 . . . . Misdirections 3 | . . . . . . . . . . 2 1 . . . . . Overload Shots . | . . . . . . . . . . . . . . . . . Overflow Damage 1436 | . . 15 . . 23 64 33 . . 297 . . . 467 136 401 Projectiles 75 | . . . . . . 19 22 . . . . . . 34 . . Explosions 119 | . . 15 . . 23 45 . . . . . . . . . 36 Melee 1242 | . . . . . . . 11 . . 297 . . . 433 136 365 Knockbacks 38 | . . . . . 2 11 21 . . 4 . . . . . . Impact 5 | . . . . . . . 1 . . 4 . . . . . . Kinetic 28 | . . . . . 2 11 15 . . . . . . . . . Secondary 5 | . . . . . . . 5 . . . . . . . . . Self-Inflicted Damage 962 | . . . . . . 379 113 . . . . . . . 135 335 Shots 35 | . . . . . . 15 3 . . . . . . . 2 15 Rammed 12 | . 1 1 . 3 . . 2 . . . . . . . 1 4 Targets Rammed 16 | . 3 1 . 3 2 . 2 . . . . . . . 1 4 Kicked 2 | . 2 . . . . . . . . . . . . . . . Crushed 2 | . . . . . 2 . . . . . . . . . . . Highest Temperature 460 | . 28 5 . . 189 255 325 . 167 460 48 275 . 10 310 262 Average Temperature 68 | . 8 5 . . 45 78 88 . 119 93 24 223 . 6 70 94 Received Heat Transfer 2581 | . 222 144 . . 324 271 738 . . . 54 9 . 105 219 495 Effects 4 | . . . . . . . . . . 1 . 1 . . 2 . Shutdowns 1 | . . . . . . . . . . 1 . . . . . . Energy Bleed 2 | . . . . . . . . . . . . 1 . . 1 . Interference 1 | . . . . . . . . . . . . . . . 1 . Siege Activations . | . . . . . . . . . . . . . . . . . Robots Corrupted 1 | . . . . . 1 . . . . . . . . . . . Combat Hostiles 1 | . . . . . 1 . . . . . . . . . . . Parts Fried 8 | . . . . . 2 . . . . 5 . . . . . 1 Impact Corruptions 29 | . . . . . . . 1 . . 11 . . . 17 . . Robots Melted . | . . . . . . . . . . . . . . . . . Combat Hostiles . | . . . . . . . . . . . . . . . . . Parts Melted 3 | . . . . . 2 . 1 . . . . . . . . . Heat Transferred 3769 | . . . . . 703 1284 1782 . . . . . . . . . Parts Sabotaged . | . . . . . . . . . . . . . . . . . Parts Stolen . | . . . . . . . . . . . . . . . . . Parts Stripped . | . . . . . . . . . . . . . . . . . Power Chain Reactions . | . . . . . . . . . . . . . . . . . Missiles Intercepted . | . . . . . . . . . . . . . . . . . Alert | -11 -10 -10 -10 -9 -8 -8 -8 -7 -7 -7 -7 -7 -7 -6 -6 -6 ------- Run | Jun Mat Min Exi Min Mat Gar Mat Fac Was Fac Low Low Zio Pro Fac Ext Peak Influence 1509 | 20 230 200 . 40 461 1509 1034 556 278 350 . . . . 781 678 Initial 735 | . 13 50 . . 15 258 735 431 194 180 . . . . 56 321 Average 384 | 12 137 94 . 9 156 875 823 455 237 256 . . . . 344 408 Maximum Alert Level 4 | . 1 1 . . 2 4 3 2 1 1 . . . . 3 2 Low Security (%) 46 | 100 80 90 . 100 78 . . . 9 25 . . . . 28 . Level 1 18 | . 19 9 . . 20 13 . . 90 74 . . . . 42 67 Level 2 11 | . . . . . 1 31 4 100 . . . . . . 19 32 Level 3 17 | . . . . . . 23 95 . . . . . . . 9 . Level 4 6 | . . . . . . 31 . . . . . . . . . . Level 5 . | . . . . . . . . . . . . . . . . . High Security . | . . . . . . . . . . . . . . . . . Max Security . | . . . . . . . . . . . . . . . . . Squads Dispatched 29 | . 7 . . . 3 . 5 . . 3 . 1 . 1 7 2 Investigation 14 | . 6 . . . 1 . 2 . . 2 . 1 . 1 1 . Extermination 2 | . . . . . . . . . . 1 . . . . 1 . Reinforcement 9 | . 1 . . . 1 . . . . . . . . . 5 2 Assault 3 | . . . . . . . 3 . . . . . . . . . Garrison 1 | . . . . . 1 . . . . . . . . . . . Intercept . | . . . . . . . . . . . . . . . . . Searches Triggered 1 | . . . . . . . . . . . . . . . 1 . Construction Impeded 3 | . . . . . 1 . . . . . . . . . . 2 Haulers Reinforced 2 | . . . . . . . . . . . . . . . 2 . Active Scanning Responses . | . . . . . . . . . . . . . . . . . Cargo Convoy Interrupts . | . . . . . . . . . . . . . . . . . Stealth | -11 -10 -10 -10 -9 -8 -8 -8 -7 -7 -7 -7 -7 -7 -6 -6 -6 --------- Run | Jun Mat Min Exi Min Mat Gar Mat Fac Was Fac Low Low Zio Pro Fac Ext Distress Signals 14 | . 3 1 . 1 1 . 2 1 . . . . . . 4 1 Communications Jammed . | . . . . . . . . . . . . . . . . . Distress Signals . | . . . . . . . . . . . . . . . . . Times Spotted 276 | . 20 15 . 3 33 34 47 3 6 12 10 16 . 7 41 29 Peak Tracking Total 15 | . 4 3 . 2 4 8 7 4 5 5 7 15 . 5 12 5 Tactical Retreats 39 | . 1 1 . 1 3 3 3 1 . 2 4 4 . 3 11 2 Traps | -11 -10 -10 -10 -9 -8 -8 -8 -7 -7 -7 -7 -7 -7 -6 -6 -6 ------- Run | Jun Mat Min Exi Min Mat Gar Mat Fac Was Fac Low Low Zio Pro Fac Ext Traps Triggered 11 | . 3 . . . . 3 . 1 . 1 . . . . . 3 Indirectly . | . . . . . . . . . . . . . . . . . Trap Hack Attempts 18 | . . . . . . . . . . 18 . . . . . . Triggered 1 | . . . . . . . . . . 1 . . . . . . Disarmed . | . . . . . . . . . . . . . . . . . Reprogrammed 6 | . . . . . . . . . . 2 . . . . 4 . Reused 1 | . . . . . . . . . . 1 . . . . . . Traps Extracted . | . . . . . . . . . . . . . . . . . Installed 3 | . . . . . . 2 1 . . . . . . . . . Triggered 1 | . . . . . . . . . . 1 . . . . . . Most Traps Carried 3 | . . . . 3 3 3 1 . . . . . . . . . Machines | -11 -10 -10 -10 -9 -8 -8 -8 -7 -7 -7 -7 -7 -7 -6 -6 -6 ---------- Run | Jun Mat Min Exi Min Mat Gar Mat Fac Was Fac Low Low Zio Pro Fac Ext Machines Disabled 14 | . . . . . 1 . 3 . . 1 . . . . 9 . Max in Single Turn 2 | . . . . . 1 . 2 . . 1 . . . . 2 . Garrison Access 1 | . . . . . . . . . . . . . . . 1 . Machines Repaired . | . . . . . . . . . . . . . . . . . Machines Sabotaged . | . . . . . . . . . . . . . . . . . Overloaded Fab Kills . | . . . . . . . . . . . . . . . . . Hacking | -11 -10 -10 -10 -9 -8 -8 -8 -7 -7 -7 -7 -7 -7 -6 -6 -6 --------- Run | Jun Mat Min Exi Min Mat Gar Mat Fac Was Fac Low Low Zio Pro Fac Ext Machines Accessed 62 | . 8 . 1 . 6 4 8 2 . 15 . 2 . 1 14 1 Terminals 36 | . 7 . . . 4 4 5 1 . 8 . 1 . 1 5 . Fabricators 5 | . . . . . . . . . . 3 . . . . 2 . Repair Stations 1 | . . . . . . . . . . . . . . . 1 . Recycling Units 11 | . 1 . . . 1 . 1 1 . 2 . . . . 4 1 Scanalyzers 4 | . . . . . . . 2 . . 1 . . . . 1 . Garrison Access 3 | . . . . . 1 . . . . 1 . . . . 1 . Total Hacks 174 | . 28 . 4 . 13 6 24 5 . 36 . 5 . 5 44 4 Successful 97 | . 13 . 4 . 4 4 8 2 . 17 . 5 . 5 32 3 Failed 75 | . 14 . . . 8 2 16 3 . 19 . . . . 12 1 Catastrophic 18 | . 2 . . . 5 1 2 1 . 7 . . . . . . Database Lockouts 2 | . 1 . . . 1 . . . . . . . . . . . Manual 79 | . 16 . . . 8 . 10 4 . 14 . . . . 24 3 Terminals 110 | . 26 . . . 7 6 15 1 . 24 . 4 . 5 22 . Fabricators 9 | . . . . . . . . . . 6 . . . . 3 . Repair Stations 3 | . . . . . . . . . . . . . . . 3 . Recycling Units 32 | . 2 . . . 4 . 4 4 . 2 . . . . 12 4 Scanalyzers 11 | . . . . . . . 5 . . 3 . . . . 3 . Garrison Access 4 | . . . . . 2 . . . . 1 . . . . 1 . Terminal Hacks 47 | . 11 . 4 . 1 4 2 . . 8 . 5 . 5 7 . Record 13 | . . . 4 . . . . . . . . 4 . 5 . . Part Schematic 2 | . 2 . . . . . . . . . . . . . . . Robot Analysis 5 | . 4 . . . 1 . . . . . . . . . . . Prototype ID Bank 4 | . 3 . . . . . . . . 1 . . . . . . Open Door 2 | . . . . . . 1 . . . . . 1 . . . . Branch Access Points 2 | . . . . . . . . . . 1 . . . . 1 . Emergency Access Points 1 | . . . . . . 1 . . . . . . . . . . Terminal Index 1 | . . . . . . . . . . 1 . . . . . . Fabricator Index 1 | . . . . . . . . . . 1 . . . . . . Alert Level 1 | . . . . . . . . . . 1 . . . . . . Unreport Threat 3 | . . . . . . . 2 . . 1 . . . . . . Locate Traps 4 | . . . . . . . . . . 1 . . . . 3 . Reprogram Traps 1 | . . . . . . . . . . . . . . . 1 . Maintenance Status 1 | . . . . . . . . . . . . . . . 1 . Surveillance Status 1 | . . . . . . . . . . . . . . . 1 . Hauler Manifests 2 | . 1 . . . . . . . . 1 . . . . . . Zone Layout 1 | . 1 . . . . . . . . . . . . . . . Garrison Registry 1 | . . . . . . 1 . . . . . . . . . . Security Stations 1 | . . . . . . 1 . . . . . . . . . . Fabricator Hacks 4 | . . . . . . . . . . 2 . . . . 2 . Load Schematic 1 | . . . . . . . . . . . . . . . 1 . Build 3 | . . . . . . . . . . 2 . . . . 1 . Repair Station Hacks 2 | . . . . . . . . . . . . . . . 2 . Scan Component 1 | . . . . . . . . . . . . . . . 1 . Repair 1 | . . . . . . . . . . . . . . . 1 . Recycling Unit Hacks 7 | . 1 . . . 1 . 1 . . 1 . . . . 2 1 Retrieve Components 7 | . 1 . . . 1 . 1 . . 1 . . . . 2 1 Scanalyzer 5 | . . . . . . . 2 . . 1 . . . . 2 . Insert Component 4 | . . . . . . . 2 . . 1 . . . . 1 . Analyze 1 | . . . . . . . . . . . . . . . 1 . Garrison Access Hacks 2 | . . . . . 1 . . . . . . . . . 1 . Unlock Access 1 | . . . . . 1 . . . . . . . . . . . Seal Access 1 | . . . . . . . . . . . . . . . 1 . Unauthorized Hacks 30 | . 1 . . . 1 . 3 2 . 5 . . . . 16 2 Terminals 13 | . . . . . . . 2 . . 4 . . . . 7 . Track 3 | . . . . . . . . . . 1 . . . . 2 . Assimilate 2 | . . . . . . . . . . 1 . . . . 1 . Botnet 6 | . . . . . . . 2 . . 1 . . . . 3 . Operators 2 | . . . . . . . . . . 1 . . . . 1 . Fabricators 2 | . . . . . . . . . . 1 . . . . 1 . Haulers 1 | . . . . . . . . . . 1 . . . . . . Recompile 1 | . . . . . . . . . . . . . . . 1 . Repair Stations . | . . . . . . . . . . . . . . . . . Recycling Units 15 | . 1 . . . 1 . 1 2 . . . . . . 8 2 Reject 6 | . . . . . . . . 1 . . . . . . 4 1 Recyclers 1 | . . . . . . . . . . . . . . . 1 . Mask 5 | . . . . . . . . 1 . . . . . . 3 1 Tunnel 3 | . 1 . . . 1 . 1 . . . . . . . . . Scanalyzers . | . . . . . . . . . . . . . . . . . Garrison Access . | . . . . . . . . . . . . . . . . . Data Cores Recovered 2 | . 1 . . . . . . . . 1 . . . . . . Used . | . . . . . . . . . . . . . . . . . Hacking Detections 48 | . 6 . . . 4 3 6 2 . 14 . 1 . 1 10 1 Full Trace Events 7 | . 2 . . . . . 1 . . 2 . 1 . 1 . . Feedback Events . | . . . . . . . . . . . . . . . . . Feedback Blocked . | . . . . . . . . . . . . . . . . . Robot Schematics Acquired 3 | . . . . . . . . . . . . . 3 . . . Robots Built 4 | . . . . . . . . . . 4 . . . . . . Authchips . | . . . . . . . . . . . . . . . . . Time 134 | . . . . . . . . . . 134 . . . . . . Total Robot Build Rating 16 | . . . . . . . . . . 16 . . . . . . Part Schematics Acquired 16 | . 2 . . . . . . . . . . . 13 . 1 . Parts Built 3 | . . . . . . . . . . 1 . . . . 2 . Authchips . | . . . . . . . . . . . . . . . . . Time 93 | . . . . . . . . . . 58 . . . . 35 . Total Part Build Rating 19 | . . . . . . . . . . 7 . . . . 12 . Parts Repaired 1 | . . . . . . . . . . . . . . . 1 . Time 33 | . . . . . . . . . . . . . . . 33 . Parts Recycled . | . . . . . . . . . . . . . . . . . Recycled Matter . | . . . . . . . . . . . . . . . . . Retrieved Matter . | . . . . . . . . . . . . . . . . . Retrieved Components 31 | . 3 . . . 10 . 10 . . 3 . . . . 4 1 Parts Scanalyzed 3 | . . . . . . . 1 . . 1 . . . . 1 . Part Schematics Acquired 1 | . . . . . . . . . . . . . . . 1 . Parts Damaged 2 | . . . . . . . . . . 1 . . . . 1 . Bothacking | -11 -10 -10 -10 -9 -8 -8 -8 -7 -7 -7 -7 -7 -7 -6 -6 -6 ------------ Run | Jun Mat Min Exi Min Mat Gar Mat Fac Was Fac Low Low Zio Pro Fac Ext Used RIF Installer . | . . . . . . . . . . . . . . . . . Robots Hacked 10 | . . . . . . . . . . . . . 10 . . . Non-combat 2 | . . . . . . . . . . . . . 2 . . . Combat 8 | . . . . . . . . . . . . . 8 . . . Robot Hacks Applied 10 | . . . . . . . . . . . . . 10 . . . parse_system 10 | . . . . . . . . . . . . . 10 . . . Relay Couplers Released 4 | . . . . . . 4 . . . . . . . . . . Programmers 4 | . . . . . . 4 . . . . . . . . . . Fabnet Peak Effective % . | . . . . . . . . . . . . . . . . . Robots Rewired 16 | . . . . . . 6 . . . . . . . . 2 8 Allies Hacked 1 | . . . . . . . . . . 1 . . . . . . Hacks Repelled . | . . . . . . . . . . . . . . . . . Allies | -11 -10 -10 -10 -9 -8 -8 -8 -7 -7 -7 -7 -7 -7 -6 -6 -6 -------- Run | Jun Mat Min Exi Min Mat Gar Mat Fac Was Fac Low Low Zio Pro Fac Ext Total Allies 48 | . . 2 . . . 8 . . 19 5 . . 3 . 3 8 Largest Group 19 | . . 2 . . . 6 . . 19 3 . . 3 3 2 3 Highest-Rated Group 475 | . . 44 . . . 90 . . 475 36 . . 79 79 53 101 Highest-Rated Ally 41 | . . 31 . . . 25 . . 35 26 . . 31 31 41 39 Total Orders . | . . . . . . . . . . . . . . . . . Ally Attacks 188 | . . 11 . . . 20 . . 100 18 . . . 9 16 14 Total Damage 6582 | . . 230 . . . 374 . . 4755 226 . . . 141 517 339 Kills 29 | . . 1 . . . 3 . . 14 3 . . . . 4 4 Allies Corrupted 1 | . . . . . . 1 . . . . . . . . . . Allies Melted . | . . . . . . . . . . . . . . . . . Intel | -11 -10 -10 -10 -9 -8 -8 -8 -7 -7 -7 -7 -7 -7 -6 -6 -6 ------- Run | Jun Mat Min Exi Min Mat Gar Mat Fac Was Fac Low Low Zio Pro Fac Ext Robot Analysis Total 5 | . 4 . . . 1 . . . . . . . . . . . Derelict Logs Recovered 10 | . . 1 . 3 . . . . . . 1 2 2 1 . . Drone Launches . | . . . . . . . . . . . . . . . . . Drone Recoveries . | . . . . . . . . . . . . . . . . . Exploration | -11 -10 -10 -10 -9 -8 -8 -8 -7 -7 -7 -7 -7 -7 -6 -6 -6 ------------- Run | Jun Mat Min Exi Min Mat Gar Mat Fac Was Fac Low Low Zio Pro Fac Ext Turns Passed 14290 | 133 1303 929 575 1906 2013 2399 1627 242 105 517 168 98 517 238 705 815 Spaces Moved 10534 | 40 627 460 180 579 667 842 615 482 282 1093 478 363 1263 471 1436 656 Core 17 | . . . . . . . . . . . . . . . . 17 Treads 2848 | . 97 109 180 579 667 842 270 . . . . . . . . 104 Legs 467 | 40 427 . . . . . . . . . . . . . . . Wheels 822 | . 103 351 . . . . 345 23 . . . . . . . . Hover 319 | . . . . . . . . . . . . . . . 2 317 Flight 6061 | . . . . . . . . 459 282 1093 478 363 1263 471 1434 218 Fastest Speed 24 | 120 120 129 320 320 236 243 150 27 27 27 27 27 27 27 24 34 Average Speed 106 | 120 161 174 320 320 240 243 192 32 27 27 27 27 27 27 26 73 Slowest Speed 320 | 120 190 320 320 320 243 243 247 150 27 27 27 27 27 27 150 200 Overloaded Moves . | . . . . . . . . . . . . . . . . . Propulsion Burnouts . | . . . . . . . . . . . . . . . . . Robots Hopped 20 | . . . . . . . . . 2 8 2 . . . 8 . Cave-ins Triggered . | . . . . . . . . . . . . . . . . . Exploration Rate (%) 58 | 3 89 66 56 95 45 78 48 20 95 35 62 60 87 80 36 38 Regions Visited 16 Branch Regions 8 Pre-discovered Areas 11 | . 1 1 1 1 1 . 1 . . . 2 1 2 . . . Known Exits Taken 3 | . . . . . 1 . . . . 1 . . . . 1 . Unknown Exits Taken 10 | 1 1 1 1 1 . . 1 . . . 1 1 1 1 . . Scrap Searched 14 | . . 1 . 3 . . . . . . 1 2 2 5 . . Spaces Dug 114 | . . . . . 7 12 14 14 2 16 4 . . 1 43 1 Terrain Destroyed 875 | . 7 56 . . 66 173 52 14 2 17 4 . . 1 94 389 Melee 68 | . . . . . 2 1 1 14 2 16 4 . . 1 26 1 Projectile 43 | . . . . . . . 10 . . 1 . . . . 32 . AOE 764 | . 7 56 . . 64 172 41 . . . . . . . 36 388 Terrain Rammed . | . . . . . . . . . . . . . . . . . Walls Destroyed . | . . . . . . . . . . . . . . . . . Machines Disabled . | . . . . . . . . . . . . . . . . . Actions | -11 -10 -10 -10 -9 -8 -8 -8 -7 -7 -7 -7 -7 -7 -6 -6 -6 --------- Run | Jun Mat Min Exi Min Mat Gar Mat Fac Was Fac Low Low Zio Pro Fac Ext Total 12717 | 89 822 542 182 609 951 1090 902 539 304 1247 503 362 1436 548 1672 919 Wait 1035 | 26 88 48 1 . 109 61 137 15 23 78 20 . 142 55 115 117 Move 10481 | 39 626 459 179 578 667 839 614 482 278 1077 473 362 1262 470 1420 656 Hop 18 | . . . . . . . . . 1 7 2 . . . 8 . Pick Up 108 | 1 18 2 1 6 26 12 14 3 . 1 . . 3 2 12 7 Fast Attach 58 | 1 1 1 . 1 4 2 3 4 . 12 1 . 5 2 11 10 Attach 44 | . 1 1 . . 5 3 7 6 . 1 . . 1 2 6 11 Detach 10 | . . . . 1 . . 2 . . 1 . . . . 2 4 Swap 94 | . 16 3 . 3 19 15 17 1 . 7 . . 3 . 8 2 Drop 145 | . 12 3 1 7 36 15 15 11 . 12 1 . 8 1 20 3 Fire 404 | 22 57 24 . 10 81 71 89 . . 3 . . . . 35 12 Melee 142 | . . . . . 2 4 1 17 2 30 6 . 12 16 33 19 Ram 5 | . . . . . . . 2 . . . . . . . . 3 Kick 2 | . 2 . . . . . . . . . . . . . . . Crush 8 | . 1 1 . 3 2 . . . . . . . . . . 1 Escape Stasis 33 | . . . . . . . . . . . . . . . . 33 Rewire 109 | . . . . . . 66 . . . . . . . . 2 41 Trap 21 | . . . . . . 2 1 . . 18 . . . . . . Miscellaneous . | . . . . . . . . . . . . . . . . . Route ------- -11/Junkyard -10/Materials (discovered 4 exits: [*Mat x3] / [*Min]) -10/Mines (discovered 2 exits: [*Mat] / *Exi) -10/Exiles (discovered 2 exits: [*Min x2]) -9/Mines (discovered 2 exits: *Mat x2) -8/Materials (discovered 2 exits: *Fac / Gar) -8/Garrison (discovered 3 exits: *Mat x3) -8/Materials (discovered 2 exits: *Fac x2) -7/Factory -7/Waste -7/Factory (discovered 3 exits: *Fac / *Low x2) -7/Lower Caves -7/Lower Caves -7/Zion -6/Proximity Caves -6/Factory (discovered 6 exits: [*Fac x2] / *Low x2 / *Ext x2) -6/Extension History --------- Turn | Location | Event 25 | -11/Junkyard | Discovered new exit (range 2) 134 | -11/Junkyard | Entered Materials 317 | -10/Materials | Build established: Mutant 365 | -10/Materials | Discovered new exit (range 14) 558 | -10/Materials | Discovered new exit (range 9) 677 | -10/Materials | Discovered new exit (range 16) 700 | -10/Materials | Derelicts attacked the area 875 | -10/Materials | Central database locked down 936 | -10/Materials | Discovered new exit (range 16) 1437 | -10/Materials | Entered Mines 1480 | -10/Mines | Met a Derelict bent on vengeance 1492 | -10/Mines | Core integrity fell below 50% 1585 | -10/Mines | Learned location of Recycling (-9) 1832 | -10/Mines | Discovered new exit (range 11) 1851 | -10/Mines | Deemed a non-threat by the Exiles lab entrance 1851 | -10/Mines | Discovered new exit (range 5) 2105 | -10/Mines | Assembled infested the area 2366 | -10/Mines | Entered Exiles 2408 | -10/Exiles | Discovered new exit (range 15) 2453 | -10/Exiles | Met 8R-AWN 2501 | -10/Exiles | Met EX-HEX 2646 | -10/Exiles | Met EX-DEC 2700 | -10/Exiles | Learned location of Zion (-7) 2915 | -10/Exiles | Discovered new exit (range 10) 2941 | -10/Exiles | Entered Mines 3044 | -9/Mines | Learned 2 Materials zone layouts 3633 | -9/Mines | Found a hidden stash of uninstalled traps 3850 | -9/Mines | Discovered new exit (range 9) 3912 | -9/Mines | Received a Rocket Launcher from a helpful Derelict 4143 | -9/Mines | Discovered new exit (range 15) 4258 | -9/Mines | Found a damaged Exp. Sensor Array with a note attached 4265 | -9/Mines | Found Prototype Device 4323 | -9/Mines | Identified Exp. Sensor Array 4551 | -9/Mines | Core integrity fell below 20% 4847 | -9/Mines | Entered Materials 4847 | -8/Materials | Evolved 4 slots: Propulsion x2, Utility x2 5682 | -8/Materials | Build established: Scavenger-Mutant 6457 | -8/Materials | Build established: Mutant 6469 | -8/Materials | Discovered new exit (range 3) 6701 | -8/Materials | Central database locked down 6823 | -8/Materials | Garrison activated, responded to threat 6860 | -8/Materials | Identified exit to Garrison 6860 | -8/Materials | Entered Garrison 6896 | -8/Garrison | Triggered checkpoint 7226 | -8/Garrison | Triggered checkpoint 7504 | -8/Garrison | Triggered checkpoint 7588 | -8/Garrison | Triggered checkpoint 7664 | -8/Garrison | Triggered checkpoint 7951 | -8/Garrison | Rescued a captive Derelict 7953 | -8/Garrison | Rescued a captive Derelict 8034 | -8/Garrison | Discovered new exit (range 14) 8034 | -8/Garrison | Discovered new exit (range 68) 8034 | -8/Garrison | Discovered new exit (range 25) 8232 | -8/Garrison | Triggered checkpoint 8494 | -8/Garrison | Learned Materials security intel 8578 | -8/Garrison | Attempted to access garrison exit controls, blocked by remote lockdown 8696 | -8/Garrison | Triggered checkpoint 9025 | -8/Garrison | Attempted to access garrison exit controls, blocked by remote lockdown 9259 | -8/Garrison | Entered Materials 10059 | -8/Materials | First assault squad dispatched 10137 | -8/Materials | Core integrity fell below 50% 10179 | -8/Materials | Lost 3 parts (2n1u) 10270 | -8/Materials | Discovered new exit (range 14) 10732 | -8/Materials | Build established: Scavenger-Mutant 10855 | -8/Materials | Discovered new exit (range 10) 10886 | -8/Materials | Entered Factory 10886 | -7/Factory | Evolved 2 slots: Propulsion x1, Utility x1 11038 | -7/Factory | Discovered new exit (range 5) 11128 | -7/Factory | Manually triggered Chute Trap 11128 | -7/Factory | Sucked down chute 11128 | -7/Factory | Entered Waste 11133 | -7/Waste | Spotted C-40 Crusher 11137 | -7/Waste | Spotted C-40 Crusher 11143 | -7/Waste | EMP discharged 11149 | -7/Waste | Spotted C-40 Crusher 11151 | -7/Waste | Spotted C-40 Crusher 11177 | -7/Waste | Spotted C-40 Crusher 11183 | -7/Waste | Met Warlord forces unprepared to attack 11203 | -7/Waste | Allies destroyed C-40 Crusher 11220 | -7/Waste | Spotted C-40 Crusher 11220 | -7/Waste | Discovered new exit (range 12) 11224 | -7/Waste | Build established: Hacker-Sprinter 11233 | -7/Waste | Entered Factory 11354 | -7/Factory | Identified exit to Lower Caves 11399 | -7/Factory | System corruption reached 10% 11433 | -7/Factory | Fabricated Imp. Cloaking Device? 11591 | -7/Factory | Discovered new exit (range 11) 11734 | -7/Factory | Fabricated S-27 Virus? 11750 | -7/Factory | Entered Lower Caves 11751 | -7/Lower Caves | Spotted B-75 Beast 11768 | -7/Lower Caves | Met a Warlord Commander 11769 | -7/Lower Caves | Learned location of Warlord (-5) 11772 | -7/Lower Caves | Found Encrypted Comm Array 11781 | -7/Lower Caves | Encountered a Warlord checkpoint 11812 | -7/Lower Caves | Build established: Sprinter 11901 | -7/Lower Caves | Discovered new exit (range 13) 11918 | -7/Lower Caves | Entered another Lower Caves area 11928 | -7/Lower Caves | Attracted the attention of an 0b10 base 11928 | -7/Lower Caves | Learned Research security intel 11928 | -7/Lower Caves | Learned Factory security intel 11928 | -7/Lower Caves | Learned Research stockpile data 11928 | -7/Lower Caves | Learned Factory stockpile data 11955 | -7/Lower Caves | Learned Factory terminal intel 11975 | -7/Lower Caves | Discovered new exit (range 11) 12016 | -7/Lower Caves | Entered Zion 12025 | -7/Zion | System corruption cleaned by Quarantine Array 12037 | -7/Zion | Found CR-A16's Pointy Stick 12044 | -7/Zion | Given A8's code to call for help 12054 | -7/Zion | Discovered new exit (range 11) 12111 | -7/Zion | Gained Derelict followers 12142 | -7/Zion | Learned location of Quarantine (-2) 12145 | -7/Zion | Learned Factory interactive machine intel 12151 | -7/Zion | Learned Factory recycling unit intel 12282 | -7/Zion | Learned Factory terminal intel 12392 | -7/Zion | Found Prototype Device 12392 | -7/Zion | Identified Phasing AFG 12533 | -7/Zion | Entered Proximity Caves 12533 | -6/Proximity Caves | Accompanied by 3 allies 12575 | -6/Proximity Caves | Build established: Hacker-Sprinter 12681 | -6/Proximity Caves | Attracted the attention of an 0b10 checkpoint 12685 | -6/Proximity Caves | Spotted B-75 Beast 12709 | -6/Proximity Caves | Core integrity fell below 50% 12710 | -6/Proximity Caves | Revealed the true nature of CR-A16's Pointy Stick 12714 | -6/Proximity Caves | Destroyed B-75 Beast 12726 | -6/Proximity Caves | Learned Factory interactive machine intel 12728 | -6/Proximity Caves | Learned Research terminal intel 12728 | -6/Proximity Caves | Learned Factory terminal intel 12728 | -6/Proximity Caves | Learned Extension emergency access door positions 12728 | -6/Proximity Caves | Learned Armory trap positions 12728 | -6/Proximity Caves | Learned Factory trap positions 12729 | -6/Proximity Caves | Attracted the attention of an 0b10 base 12743 | -6/Proximity Caves | Lost 3 parts (1p2u) 12761 | -6/Proximity Caves | Discovered new exit (range 14) 12771 | -6/Proximity Caves | Entered Factory 12771 | -6/Factory | Evolved 2 slots: Propulsion x1, Utility x1 12772 | -6/Factory | Loaded intel: 115 trap records 12775 | -6/Factory | Loaded intel: 52 interactive machine locations 12776 | -6/Factory | Loaded intel: 26 terminal locations 12777 | -6/Factory | Loaded intel: 6 recycling unit locations 12789 | -6/Factory | Identified exit to Lower Caves 12789 | -6/Factory | Identified exit to Extension 13219 | -6/Factory | Discovered new exit (range 6) 13225 | -6/Factory | Discovered new exit (range 16) 13290 | -6/Factory | Repaired Broken Cld. Cesium-ion Thruster? 13313 | -6/Factory | Fabricated Cmb. Gravmag System? 13449 | -6/Factory | Found Prototype Launcher 13449 | -6/Factory | Identified Scatter Rocket Array 13454 | -6/Factory | Found Scatter Rocket Array 13471 | -6/Factory | Search patrols dispatched 13476 | -6/Factory | Entered Extension 13497 | -6/Extension | Lost 3 parts (1p2n) 13738 | -6/Extension | Build established: Hacker-Mutant 13901 | -6/Extension | Disrupted transfer network 13904 | -6/Extension | Core integrity fell below 50% 13926 | -6/Extension | Lost 5 parts (3n1u1w) 14149 | -6/Extension | Core integrity fell below 20% 14172 | -6/Extension | Destroyed 10 combat bots 14182 | -6/Extension | Lost 7 parts (1p4n1u1w) 14291 | -6/Extension | Destroyed by Y-54 Guardian with Flak Gun Last Messages --------------- 14194_ System corrupted: Heat flow error (+288). 14202_ Acquired 21 matter. 14205_ Acquired Bore Cannon. 14207_ Acquired Hvy. Beamcaster. 14209_ Acquired Imp. Deuterium Engine. 14214_ Acquired 17 matter. 14235_ The unstable cave ceiling collapses. 14250_ Y-54 Guardian suffers critical hit (Smash). 14250_ Destroyed Lgt. Treads. 14250_ Y-54 Guardian system corrupted by crushing effect. 14251_ Y-54 Guardian system terminally corrupted. 14253_ Acquired Imp. Light Armor Plating. 14256_ Acquired 61 matter. 14257_ The unstable cave ceiling collapses. 14285_ System corrupted: Matter fused (-6). 14286_ R-10 Processor collects Corrupted Imp. Heat Sink. 14289_ The unstable cave ceiling collapses. 14290_ R-10 Processor collects Corrupted Lgt. Treads. 14290_ Acquired 36 matter. 14291_ Acquired 50 matter. Map ----- +----------------------------------------------------+ | | | | | | | | | | | | | | | | | | | | | | | ?????????????????????????????????????????????????? | | ?????????????????????????????????????????????????? | | ?????????????????????????????????????????????????? | | ?????????????????????????????????????????????????? | | ?????????????????????????????????????????????????? | | #######?????#######??????????????????????????????? | | #######??###########?????????????????????????????? | | ## ##??##### ######??????????????????????????? | | ##?### ## #####??????????????????????????? | | ## ##?### ###########?????????????????? | | ### ###### ############?????????????????? | | ### ###### # # ## # ###????????????????? | | ### #### = ### #####????????????????? | | ""# #### #### w ## ###???????????????? | | Y"# #### + Y @ u## ###???????????????? | | ####= ####+##+ # # ### ##???????????????? | | / ### Y # # ##???????????????? | | ####### ### # # ## ##???????????????? | | ########### #### ### ## ##???????????????? | | ###???##### ### ## ## ###???????????????? | | #????????## ########## # # ####???????????????? | | #????????## # ####### # ###????????????????? | | #????????### #####?### ####?????????????????? | | #????????##########????### ####?????????????????? | | ??????????#########?????? # ##???????????????????? | | ????????????????????????? + ##???????????????????? | | ?????????????????????????T# ##???????????????????? | | ??????????????????????????? ##???????????????????? | | ??????????????????????????? ##???????????????????? | | ??????????????????????????? ?????????????????????? | | ??????????????????????????? ?????????????????????? | | ??????????????????????????? ?????????????????????? | | ??????????????????????????? ?????????????????????? | | ?????????????????????????????????????????????????? | | ?????????????????????????????????????????????????? | | ?????????????????????????????????????????????????? | | ?????????????????????????????????????????????????? | | ?????????????????????????????????????????????????? | | ?????????????????????????????????????????????????? | +----------------------------------------------------+ Best States ------------- Heat Dissipation 61 Energy Generation 18 Energy Capacity 300 Matter Stores 300 Matter Capacity 300 Sight Range 20 Robot Scan Range 20 Terrain Scan Density 10 Cloak Strength 3 Additional Mass Support 9 Armor Coverage 600 Resistance: TH 10 Evasion (%) 65 Recoil Reduction 4 Offensive Hacking 34 Defensive Hacking 10 Authchip Count 1 Item Schematics ----------------- Cargo Storage Unit | -10/Materials | Hacked Hcp. Storage Unit | -10/Materials | Hacked System Restoration Module | -7/Zion | Archive Hvy. Plasma Cannon | -7/Zion | Archive Mak. Hammer | -7/Zion | Archive Arm. Leg | -7/Zion | Archive Imp. Shield Generator | -7/Zion | Archive Arc Projector | -7/Zion | Archive Imp. Coolant Injector | -7/Zion | Archive Hvy. Treads | -7/Zion | Archive Lyr. Light Armor Plating | -7/Zion | Archive Hvy. Flak Cannon | -7/Zion | Archive Core Analyzer | -7/Zion | Archive Imp. Target Analyzer | -7/Zion | Archive Imp. KE Penetrator | -7/Zion | Archive Cld. Cesium-ion Thruster | -6/Factory | Scanalyzed Robot Schematics ------------------ L-41 Fighter | -7/Zion | Archive M-28 Smith | -7/Zion | Archive B-48 Gladiator | -7/Zion | Archive Fabricated ------------ Imp. Cloaking Device | x1 | -7/Factory | Preloaded S-27 Virus | x4 | -7/Factory | Preloaded Cmb. Gravmag System | x2 | -6/Factory | Preloaded Alien Tech Used ----------------- None Achievements -------------- None Challenges ------------ None Game ------ Seed DecoderCombatCharge Manual? 0 Play Time 03:00:51 Cumulative 1046.1 hours Start 2023.11.30 @ 19:29:42 End 2023.12.01 @ 19:40:31 Sessions 3 Manual Loads 0 Difficulty Rogue Special Mode None Game No. 223 Rogue 191 Adventurer 31 Explorer 1 Win Type - Total 47 Types 33/0/6/7/0/0/1/0/0 Lore% 84 Gallery% 89 Achievement% 80 Wizard Run 0 Options --------- ASCII 0 Keyboard 0 Movement Arrows Keybinds 0 Fullscreen 1 Font 20/Terminus Map View 66x50 Tactical HUD 1 Map Filters NONE Filters NONE Steam 1 RUN: 169e8d54-cc4a-45c4-a78a-8bdb36f05470